[Event "Schachfestival GM 2018"]
[Site "Lueneburg"]
[Date "2018.07.05"]
[Round "2"]
[White "Barath M"]
[Black "Reuker, Jari"]
[Result "1/2-1/2"]
[ECO "E32"]
[WhiteElo "2321"]
[BlackElo "2377"]
[Annotator "NA"]
[PlyCount "67"]
[EventDate "2018.07.05"]
[EventType "tourn"]
[EventCountry "GER"]
[SourceTitle "playchess.com"]
[Source "ChessBase"]
[SourceQuality "1"]
[TimeControl "40/5400+30:1800+30"]

1. d4 {[%emt 0:00:00]} Nf6 {[%emt 0:02:20]} 2. c4 {[%emt 0:00:00]} e6 {[%emt 0:00:07]} 3. Nc3 {[%emt 0:00:00]} Bb4 {[%emt 0:00:18]} 4. Qc2 {[%emt 0:00:00]} O-O {[%emt 0:00:08]} 5. e4 {[%emt 0:00:00]} d5 {[%emt 0:00:06]} 6. e5 {[%emt 0:00:00]} Ne4 {[%emt 0:00:06]} 7. Bd3 {[%emt 0:00:00]} c5 {[%emt 0:00:07]} 8. Nge2 {[%emt 0:00:02]} cxd4 {[%emt 0:00:08]} 9. Nxd4 {[%emt 0:00:04]} Nd7 {[%emt 0:00:08]} 10. Bf4 {[%emt 0:00:05]} Qh4 {[%emt 0:03:21]} 11. g3 {[%emt 0:00:04]} Qh5 {[%emt 0:00:48]} 12. O-O {[%emt 0:00:05]} Bxc3 {[%emt 0:03:08]} 13. bxc3 {[%emt 0:00:06]} g5 {[%emt 0:00:48]} 14. cxd5 {[%emt 0:00:05]} exd5 {[%emt 0:00:21]} 15. Bxe4 {[%emt 0:00:05]} dxe4 {[%emt 0:00:58]} 16. e6 {[%emt 0:00:05]} gxf4 {[%emt 0:00:54]} 17. exd7 {[%emt 0:00:06]} fxg3 {[%emt 0:01:35]} 18. fxg3 {[%emt 0:00:08]} Bxd7 {[%emt 0:00:05]} 19. Qxe4 {[%emt 0:00:04]} b6 {[%emt 0:00:47]} 20. Nf5 {[%emt 0:00:06]} Rae8 {[%emt 0:01:11]} 21. Qd5 {[%emt 0:13:55]} Bxf5 {[%emt 0:00:40]} 22. Rxf5 {[%emt 0:00:56]} Qe2 {[%emt 0:01:35]} 23. Raf1 {[%emt 0:24:13]} Qe3+ {[%emt 0:01:35]} 24. R1f2 {[%emt 0:02:47]} Qe1+ {[%emt 0:08:15]} 25. Kg2 {[%emt 0:05:12]} Qe4+ {[%emt 0:02:17]} 26. Qxe4 {[%emt 0:06:24]} Rxe4 {[%emt 0:00:03]} 27. Rg5+ {[%emt 0:03:00]} Kh8 {[%emt 0:00:08]} 28. Rd5 {[%emt 0:00:46]} Re7 {[%emt 0:02:12]} 29. a4 {[%emt 0:07:57]} Rc8 {[%emt 0:02:29]} 30. Rf3 {[%emt 0:01:35]} Rec7 {[%emt 0:02:42]} 31. a5 {[%emt 0:02:03]} Kg7 {[%emt 0:01:50]} 32. axb6 {[%emt 0:03:13]} axb6 {[%emt 0:00:11]} 33. Rg5+ {[%emt 0:01:06]} Kf8 {[%emt 0:01:24]} 34. Rb5 {[%emt 0:03:35]} 1/2-1/2

[Event "Schachfestival GM 2018"]
[Site "Lueneburg"]
[Date "2018.07.08"]
[Round "4"]
[White "Vorobiov, Evgeny E"]
[Black "Malakhatko, Vadim"]
[Result "1/2-1/2"]
[ECO "A06"]
[WhiteElo "2564"]
[BlackElo "2499"]
[Annotator "RC"]
[PlyCount "21"]
[EventDate "2018.07.05"]
[EventType "tourn"]
[EventCountry "GER"]
[SourceTitle "playchess.com"]
[Source "ChessBase"]
[SourceQuality "1"]
[TimeControl "40/5400+30:1800+30"]

1. Nf3 {[%emt 0:00:00]} d5 {[%emt 0:01:01]} 2. g3 {[%emt 0:00:00]} g6 {[%emt 0:00:07]} 3. d4 {[%emt 0:00:00]} c6 {[%emt 0:00:19]} 4. Bg2 {[%emt 0:00:00]} Bg7 {[%emt 0:00:06]} 5. O-O {[%emt 0:00:00]} Nf6 {[%emt 0:00:07]} 6. b3 {[%emt 0:00:32]} O-O {[%emt 0:00:12]} 7. c4 {[%emt 0:00:02]} Bf5 {[%emt 0:00:15]} 8. Bb2 {[%emt 0:00:24]} Ne4 {[%emt 0:00:07]} 9. Nbd2 {[%emt 0:00:13]} Qa5 {[%emt 0:00:11]} 10. Nxe4 {[%emt 0:01:41]} Bxe4 {[%emt 0:00:07]} 11. e3 {[%emt 0:00:28]} 1/2-1/2

[Event "Schachfestival GM 2018"]
[Site "Lueneburg"]
[Date "2018.07.08"]
[Round "4"]
[White "Lubbe, Nikolas"]
[Black "Karpatchev, Aleksandr"]
[Result "1-0"]
[ECO "A06"]
[WhiteElo "2463"]
[BlackElo "2469"]
[Annotator "ChessBase"]
[PlyCount "57"]
[EventDate "2018.07.05"]
[EventType "tourn"]
[EventCountry "GER"]
[SourceTitle "playchess.com"]
[Source "ChessBase"]
[SourceQuality "1"]
[TimeControl "40/5400+30:1800+30"]

1. Nf3 {[%emt 0:00:00]} d5 {[%emt 0:01:28]} 2. e3 {[%emt 0:00:00]} Nf6 {[%emt 0:02:03]} 3. c4 {[%emt 0:01:51]} e6 {[%emt 0:03:28]} 4. b3 {[%emt 0:00:31]} c5 {[%emt 0:00:22]} 5. Bb2 {[%emt 0:00:31]} Nc6 {[%emt 0:00:06]} 6. cxd5 {[%emt 0:00:15]} exd5 {[%emt 0:00:08]} 7. Bb5 {[%emt 0:00:41]} Be7 {[%emt 0:05:02]} 8. Ne5 {[%emt 0:10:40]} Qb6 {[%emt 0:04:06]} 9. Nc3 {[%emt 0:04:34]} O-O {[%emt 0:00:15]} 10. Nxc6 {[%emt 0:01:11]} bxc6 {[%emt 0:00:10]} 11. Be2 {[%emt 0:00:53]} c4 {[%emt 0:23:34]} 12. Na4 {[%emt 0:02:51]} Qb5 {[%emt 0:00:08]} 13. O-O {[%emt 0:12:26]} Bf5 {[%emt 0:04:24]} 14. Rc1 {[%emt 0:04:05]} Bd3 {[%emt 0:00:54]} 15. Bxd3 {[%emt 0:02:34]} cxd3 {[%emt 0:01:24]} 16. Bxf6 {[%emt 0:00:33]} Bxf6 {[%emt 0:04:15]} 17. Qg4 {[%emt 0:06:56]} Rfd8 {[%emt 0:23:40]} 18. Rc5 {[%emt 0:02:55]} Qa6 {[%emt 0:00:06]} 19. Rfc1 {[%emt 0:03:09]} Rac8 {[%emt 0:00:06]} 20. Qf5 {[%emt 0:05:11]} Rd6 {[%emt 0:16:30]} 21. g3 {[%emt 0:09:31]} g6 {[%emt 0:00:08]} 22. Qf4 {[%emt 0:04:54]} Re6 {[%emt 0:04:10]} 23. Qb4 {[%emt 0:03:04]} Be7 {[%emt 0:01:37]} 24. Qc3 {[%emt 0:04:21]} Bf6 {[%emt 0:01:26]} 25. Ra5 {[%emt 0:06:46]} Qb7 {[%emt 0:00:01]} 26. Qxd3 {[%emt 0:00:53]} Qb4 {[%emt 0:01:55]} 27. Rxd5 {[%emt 0:02:26]} Qa3 {[%emt 0:01:01]} 28. Rc2 {[%emt 0:00:42]} Ree8 {[%emt 0:00:49]} 29. Rd7 {[%emt 0:01:28]} 1-0

[Event "Schachfestival GM 2018"]
[Site "Lueneburg"]
[Date "2018.07.08"]
[Round "4"]
[White "Drozdowski, Kacper"]
[Black "Wachinger, Nikolas"]
[Result "1/2-1/2"]
[ECO "B91"]
[WhiteElo "2455"]
[BlackElo "2340"]
[Annotator "ChessBase"]
[PlyCount "107"]
[EventDate "2018.07.05"]
[EventType "tourn"]
[EventCountry "GER"]
[SourceTitle "playchess.com"]
[Source "ChessBase"]
[SourceQuality "1"]
[TimeControl "40/5400+30:1800+30"]

1. e4 {[%emt 0:00:00]} c5 {[%emt 0:00:00]} 2. Nf3 {[%emt 0:00:00]} d6 {[%emt 0:00:00]} 3. d4 {[%emt 0:00:02]} Nf6 {[%emt 0:00:09]} 4. Nc3 {[%emt 0:00:21]} cxd4 {[%emt 0:00:13]} 5. Nxd4 {[%emt 0:00:07]} a6 {[%emt 0:00:15]} 6. g3 {[%emt 0:00:14]} g6 {[%emt 0:00:38]} 7. Bg2 {[%emt 0:00:17]} Bg7 {[%emt 0:00:08]} 8. O-O {[%emt 0:01:57]} O-O {[%emt 0:00:13]} 9. h3 {[%emt 0:02:14]} Nc6 {[%emt 0:00:49]} 10. Be3 {[%emt 0:02:46]} Bd7 {[%emt 0:02:08]} 11. Qd2 {[%emt 0:05:24]} Rc8 {[%emt 0:11:51]} 12. Rad1 {[%emt 0:03:25]} Qc7 {[%emt 0:05:38]} 13. Nxc6 {[%emt 0:04:11]} Bxc6 {[%emt 0:00:38]} 14. Bd4 {[%emt 0:04:17]} b5 {[%emt 0:03:27]} 15. a3 {[%emt 0:01:09]} a5 {[%emt 0:08:02]} 16. Nd5 {[%emt 0:09:12]} Bxd5 {[%emt 0:07:45]} 17. exd5 {[%emt 0:02:16]} b4 {[%emt 0:02:24]} 18. axb4 {[%emt 0:00:48]} axb4 {[%emt 0:00:17]} 19. Qxb4 {[%emt 0:09:17]} Qxc2 {[%emt 0:00:41]} 20. Rd2 {[%emt 0:06:07]} Qc4 {[%emt 0:05:18]} 21. Qxc4 {[%emt 0:06:45]} Rxc4 {[%emt 0:00:33]} 22. Re1 {[%emt 0:00:16]} Rc7 {[%emt 0:03:13]} 23. Bb6 {[%emt 0:03:29]} Rb7 {[%emt 0:00:31]} 24. Ba5 {[%emt 0:00:17]} Rfb8 {[%emt 0:20:35]} 25. b4 {[%emt 0:01:21]} Kf8 {[%emt 0:01:03]} 26. Rc2 {[%emt 0:03:11]} Nd7 {[%emt 0:02:57]} 27. Rd1 {[%emt 0:03:59]} Nb6 {[%emt 0:02:37]} 28. Rc6 {[%emt 0:04:15]} Na4 {[%emt 0:01:39]} 29. Rdc1 {[%emt 0:08:12]} Bb2 {[%emt 0:02:37]} 30. Rc8+ {[%emt 0:01:50]} Kg7 {[%emt 0:00:14]} 31. Rxb8 {[%emt 0:02:56]} Rxb8 {[%emt 0:00:03]} 32. Rc4 {[%emt 0:01:52]} Nc3 {[%emt 0:09:15]} 33. Kf1 {[%emt 0:04:16]} Rb5 {[%emt 0:00:43]} 34. Rd4 {[%emt 0:01:10]} Ba1 {[%emt 0:00:48]} 35. Rd3 {[%emt 0:01:31]} Bb2 {[%emt 0:02:55]} 36. f4 {[%emt 0:03:25]} h5 {[%emt 0:00:42]} 37. Bf3 {[%emt 0:00:15]} Kf6 {[%emt 0:01:16]} 38. Kf2 {[%emt 0:02:49]} Na2 {[%emt 0:00:53]} 39. Bd8 {[%emt 0:02:39]} Nxb4 {[%emt 0:01:42]} 40. Rb3 {[%emt 0:00:28]} Bd4+ {[%emt 0:00:51]} 41. Kg2 {[%emt 0:30:43]} Bc5 {[%emt 0:04:35]} 42. Be2 {[%emt 0:00:00]} Rb8 {[%emt 0:02:38]} 43. Ba5 {[%emt 0:00:00]} Kg7 {[%emt 0:07:49]} 44. Bxb4 {[%emt 0:00:00]} Bxb4 {[%emt 0:00:12]} 45. Kf3 {[%emt 0:00:00]} Kf6 {[%emt 0:00:46]} 46. h4 {[%emt 0:00:00]} e5 {[%emt 0:03:15]} 47. dxe6 {[%emt 0:00:00]} Kxe6 {[%emt 0:00:27]} 48. Bc4+ {[%emt 0:00:00]} Kf6 {[%emt 0:03:46]} 49. Rb2 {[%emt 0:00:00]} Kg7 {[%emt 0:02:11]} 50. Rb3 {[%emt 0:00:00]} Rb6 {[%emt 0:00:50]} 51. Rb2 {[%emt 0:00:00]} f6 {[%emt 0:01:59]} 52. Rb3 {[%emt 0:00:00]} Kh6 {[%emt 0:00:33]} 53. Ke4 {[%emt 0:00:00]} Bc5 {[%emt 0:03:37]} 54. Rxb6 {[%emt 0:00:00]} 1/2-1/2

[Event "Schachfestival GM 2018"]
[Site "Lueneburg"]
[Date "2018.07.08"]
[Round "4"]
[White "Winterberg, Lukas"]
[Black "Reuker, Jari"]
[Result "1/2-1/2"]
[ECO "D37"]
[WhiteElo "2372"]
[BlackElo "2377"]
[Annotator "NA"]
[PlyCount "130"]
[EventDate "2018.07.05"]
[EventType "tourn"]
[EventCountry "GER"]
[SourceTitle "playchess.com"]
[Source "ChessBase"]
[SourceQuality "1"]
[TimeControl "40/5400+30:1800+30"]

1. d4 {[%emt 0:00:00]} Nf6 {[%emt 0:00:00]} 2. c4 {[%emt 0:00:00]} e6 {[%emt 0:00:00]} 3. Nf3 {[%emt 0:00:00]} d5 {[%emt 0:00:00]} 4. Nc3 {[%emt 0:00:03]} dxc4 {[%emt 0:00:00]} 5. e4 {[%emt 0:00:21]} Bb4 {[%emt 0:00:09]} 6. Bxc4 {[%emt 0:00:13] D24: Angenommenes Damengambit} Nxe4 {[%emt 0:00:09]} 7. O-O {[%emt 0:00:16]} Nxc3 {[%emt 0:00:11]} (7... Nf6 8. Qa4+ Nc6 9. Ne5 Rb8 10. d5 exd5 11. Nxd5 Nxd5 12. Nxc6 bxc6 13. Qxc6+ Qd7 14. Bxd5 {½-½ (28) Aronian,L (2764)-Caruana,F (2822) Stavanger 2018}) 8. bxc3 {[%emt 0:00:03]} Be7 {[%emt 0:00:12]} 9. Ne5 {[%emt 0:00:28]} O-O {[%emt 0:00:16]} 10. Qg4 {[%emt 0:01:12]} Nc6 {[%emt 0:00:10]} 11. Re1 {[%emt 0:07:55]} f5 {[%emt 0:01:54]} 12. Qf3 {[%emt 0:00:46]} Nxe5 {[%emt 0:00:08]} 13. Rxe5 {[%emt 0:00:14]} Kh8 {[%emt 0:00:07]} 14. Bf4 $146 {[%emt 0:02:37]} g5 {[%emt 0:00:20]} 15. Bd2 {[%emt 0:01:32]} Bd6 {[%emt 0:00:13]} 16. Rae1 {[%emt 0:02:38]} Bxe5 {[%emt 0:00:22]} 17. Rxe5 {[%emt 0:00:04]} Bd7 {[%emt 0:00:11]} 18. h4 {[%emt 0:17:47]} gxh4 {[%emt 0:00:42]} 19. Bf4 {[%emt 0:01:18]} Rg8 {[%emt 0:01:59]} 20. Re3 {[%emt 0:36:56]} Rg6 {[%emt 0:04:22]} 21. Be5+ {[%emt 0:00:27]} Kg8 {[%emt 0:00:18]} 22. Qxf5 $1 {[%emt 0:00:57]} Qg5 {[%emt 0:47:37]} 23. Qe4 {[%emt 0:01:02]} Rf8 {[%emt 0:06:51]} 24. Bxc7 {[%emt 0:10:10]} Qf6 {[%emt 0:07:50]} 25. f4 {[%emt 0:01:35]} h3 {[%emt 0:06:29]} 26. Rxh3 {[%emt 0:03:49]} Bc6 {[%emt 0:00:51]} 27. d5 {[%emt 0:02:31]} exd5 {[%emt 0:00:48]} 28. Bxd5+ {[%emt 0:00:23]} Bxd5 {[%emt 0:00:19]} 29. Qxd5+ {[%emt 0:00:03]} Qf7 {[%emt 0:05:45]} 30. c4 {[%emt 0:01:01] [#]} b5 $1 {[%emt 0:02:53]} 31. Be5 {[%emt 0:05:09]} bxc4 {[%emt 0:00:49]} 32. Qe4 {[%emt 0:00:23]} Qe6 {[%emt 0:02:28]} 33. Rc3 {[%emt 0:00:17]} Rd8 {[%emt 0:05:49]} 34. f5 {[%emt 0:01:11]} Qb6+ {[%emt 0:02:09]} 35. Kf1 {[%emt 0:00:49]} Qc6 {[%emt 0:01:38]} 36. Qxc4+ {[%emt 0:01:17]} Qxc4+ {[%emt 0:00:05]} 37. Rxc4 {[%emt 0:00:04]} Rb6 {[%emt 0:02:20]} ({Black should try} 37... Ra6 $19 38. Rg4+ Kf8) 38. Bd4 {[%emt 0:00:47]} Rb7 {[%emt 0:01:19]} 39. Ke2 {[%emt 0:01:08]} Kf7 {[%emt 0:00:27]} 40. Bc3 {[%emt 0:01:16]} Re7+ {[%emt 0:01:18]} 41. Kf3 {[%emt 0:30:14]} Rd1 {[%emt 0:01:08]} (41... Rd3+ $17 42. Kf4 Re2) 42. Bb4 {[%emt 0:00:00]} Rf1+ {[%emt 0:00:54]} 43. Kg4 {[%emt 0:00:00]} Rd7 {[%emt 0:02:21]} ({Black should play} 43... Re5 $17 44. Rc7+ Ke8) 44. a3 {[%emt 0:00:00]} Rf2 {[%emt 0:03:48]} 45. g3 {[%emt 0:00:00]} h6 {[%emt 0:01:42]} 46. Bc3 {[%emt 0:00:00]} Rc2 {[%emt 0:03:47]} 47. Rc6 {[%emt 0:00:00]} Rd3 {[%emt 0:05:50]} 48. Rf6+ {[%emt 0:00:00]} Ke7 {[%emt 0:00:22]} 49. Re6+ {[%emt 0:00:00]} Kd7 {[%emt 0:01:24]} 50. Bb4 {[%emt 0:00:00]} a5 {[%emt 0:06:30]} 51. Bxa5 {[%emt 0:00:00]} Rc4+ {[%emt 0:01:56]} 52. Kh3 {[%emt 0:00:00]} Rxa3 {[%emt 0:00:47]} 53. Bd2 {[%emt 0:00:00]} h5 {[%emt 0:00:53]} 54. Rh6 {[%emt 0:00:00]} Rg4 {[%emt 0:02:20]} 55. Be1 {[%emt 0:00:00]} Re4 {[%emt 0:00:41]} 56. Bd2 {[%emt 0:00:00]} Rg4 {[%emt 0:00:24]} 57. Be1 {[%emt 0:00:00]} Re4 {[%emt 0:00:03]} 58. Bd2 {[%emt 0:00:00]} Ra1 {[%emt 0:01:40]} 59. Bf4 {[%emt 0:00:00]} Rh1+ {[%emt 0:00:50]} 60. Kg2 {[%emt 0:00:00]} Ree1 {[%emt 0:00:15]} 61. Rh7+ {[%emt 0:00:00]} Ke8 {[%emt 0:01:12]} 62. f6 {[%emt 0:00:00]} Rhg1+ {[%emt 0:00:52]} 63. Kf3 {[%emt 0:00:00]} Rgf1+ {[%emt 0:00:06]} 64. Kg2 $11 {[%emt 0:00:00]} Rg1+ {[%emt 0:00:13]} 65. Kf3 {[%emt 0:00:00]} Rgf1+ {[%emt 0:00:13] Ke4} 1/2-1/2

[Event "Schachfestival GM 2018"]
[Site "Lueneburg"]
[Date "2018.07.08"]
[Round "4"]
[White "Barath M"]
[Black "Ewert, Hannes"]
[Result "1/2-1/2"]
[ECO "E34"]
[WhiteElo "2321"]
[BlackElo "2318"]
[Annotator "ChessBase"]
[PlyCount "138"]
[EventDate "2018.07.05"]
[EventType "tourn"]
[EventCountry "GER"]
[SourceTitle "playchess.com"]
[Source "ChessBase"]
[SourceQuality "1"]
[TimeControl "40/5400+30:1800+30"]

1. d4 Nf6 2. c4 e6 3. Nc3 Bb4 4. Qc2 d5 {[%emt 0:00:50]} 5. cxd5 {[%emt 0:00:00]} Qxd5 {[%emt 0:00:20]} 6. Nf3 {[%emt 0:00:02]} O-O {[%emt 0:01:40]} 7. e3 {[%emt 0:00:42]} c5 {[%emt 0:04:34]} 8. Bd2 {[%emt 0:09:58]} Bxc3 {[%emt 0:02:05]} 9. Bxc3 {[%emt 0:00:06]} Nc6 {[%emt 0:03:42]} 10. dxc5 {[%emt 0:12:09]} Qxc5 {[%emt 0:01:27]} 11. a3 {[%emt 0:03:42]} Nd5 {[%emt 0:02:50]} 12. Bd3 {[%emt 0:00:24]} g6 {[%emt 0:16:24]} 13. Bd2 {[%emt 0:00:35]} Qxc2 {[%emt 0:02:15]} 14. Bxc2 {[%emt 0:00:05]} f6 {[%emt 0:06:49]} 15. e4 {[%emt 0:14:49]} Nc7 {[%emt 0:01:14]} 16. e5 {[%emt 0:05:29]} fxe5 17. Bh6 {[%emt 0:02:04]} Rd8 {[%emt 0:09:11]} 18. Bg5 {[%emt 0:12:50]} Rf8 {[%emt 0:02:59]} 19. Rd1 Nd5 {[%emt 0:11:07]} 20. O-O {[%emt 0:08:09]} Bd7 {[%emt 0:11:52]} 21. Rfe1 {[%emt 0:03:13]} Rac8 {[%emt 0:00:12]} 22. Bb1 {[%emt 0:07:15]} Kg7 {[%emt 0:03:26]} 23. Nxe5 {[%emt 0:01:14]} Nxe5 {[%emt 0:00:08]} 24. Rxe5 {[%emt 0:00:05]} Rf7 {[%emt 0:01:09]} 25. Bh4 {[%emt 0:07:12]} Nf4 {[%emt 0:04:42]} 26. Bg5 {[%emt 0:04:02]} Nd5 {[%emt 0:00:06]} 27. f3 {[%emt 0:01:01]} Nb6 {[%emt 0:04:47]} 28. Re2 {[%emt 0:00:30]} Nc4 {[%emt 0:01:44]} 29. Ba2 {[%emt 0:02:18]} b5 {[%emt 0:05:02]} 30. Bh4 {[%emt 0:01:23]} a5 {[%emt 0:02:07]} 31. Rc2 {[%emt 0:03:20]} Ne3 {[%emt 0:01:21]} 32. Rxc8 {[%emt 0:00:07]} Nxd1 {[%emt 0:00:18]} 33. Rc2 {[%emt 0:00:11]} Ne3 {[%emt 0:00:23]} 34. Re2 {[%emt 0:00:39]} Nd5 {[%emt 0:00:39]} 35. Bg3 {[%emt 0:00:51]} Bc8 {[%emt 0:01:11]} 36. Be5+ {[%emt 0:00:42]} Kf8 {[%emt 0:00:31]} 37. Rc2 {[%emt 0:00:50]} Bd7 {[%emt 0:00:36]} 38. Rc5 {[%emt 0:00:10]} Nf4 {[%emt 0:00:20]} 39. Bd6+ {[%emt 0:01:15]} Kg7 {[%emt 0:00:36]} 40. Be5+ {[%emt 0:00:42]} Kf8 {[%emt 0:00:46]} 41. Bb1 {[%emt 0:06:05]} Ke7 {[%emt 0:04:26]} 42. Be4 {[%emt 0:02:09]} Rf8 {[%emt 0:02:42]} 43. Kf2 {[%emt 0:02:22]} a4 {[%emt 0:02:47]} 44. h4 {[%emt 0:06:05]} Nd5 {[%emt 0:04:15]} 45. h5 {[%emt 0:03:39]} Kf7 {[%emt 0:02:10]} 46. hxg6+ {[%emt 0:02:36]} hxg6 {[%emt 0:00:03]} 47. Rc1 {[%emt 0:00:17]} Rc8 {[%emt 0:02:12]} 48. Rh1 {[%emt 0:01:13]} Nf6 {[%emt 0:00:02]} 49. Bd3 {[%emt 0:01:05]} Rc5 {[%emt 0:02:21]} 50. Bc3 {[%emt 0:00:28]} Rh5 {[%emt 0:05:39]} 51. Rxh5 {[%emt 0:00:39]} gxh5 {[%emt 0:00:39]} 52. Ke3 {[%emt 0:02:09]} Nd5+ {[%emt 0:01:52]} 53. Kd4 {[%emt 0:00:10]} Ke7 {[%emt 0:00:54]} 54. Kc5 {[%emt 0:00:30]} Ne3 {[%emt 0:00:40]} 55. Bd2 {[%emt 0:02:15]} Nc4 {[%emt 0:00:59]} 56. Bg5+ {[%emt 0:00:32]} Kf7 {[%emt 0:00:33]} 57. Bc1 {[%emt 0:01:01]} Na5 {[%emt 0:02:01]} 58. Kd6 {[%emt 0:03:45]} Be8 {[%emt 0:01:56]} 59. Be4 {[%emt 0:00:33]} Kf6 {[%emt 0:01:17]} 60. Bd3 {[%emt 0:03:18]} Nc4+ {[%emt 0:01:09]} 61. Kc5 {[%emt 0:00:20]} h4 {[%emt 0:01:22]} 62. Bxc4 {[%emt 0:01:02]} bxc4 {[%emt 0:00:04]} 63. Kxc4 {[%emt 0:00:01]} Bc6 {[%emt 0:00:48]} 64. Kb4 {[%emt 0:00:45]} Kf5 {[%emt 0:00:34]} 65. Be3 {[%emt 0:00:12]} e5 {[%emt 0:00:33]} 66. b3 {[%emt 0:00:27]} axb3 {[%emt 0:00:03]} 67. Kxb3 {[%emt 0:00:01]} e4 {[%emt 0:00:26]} 68. fxe4+ {[%emt 0:00:12]} Bxe4 {[%emt 0:00:04]} 69. Bf2 {[%emt 0:00:13]} Ke5 1/2-1/2

[Event "Schachfestival GM 2018"]
[Site "Lueneburg"]
[Date "2018.07.10"]
[Round "6"]
[White "Lubbe, Nikolas"]
[Black "Wachinger, Nikolas"]
[Result "1/2-1/2"]
[ECO "D02"]
[WhiteElo "2463"]
[BlackElo "2340"]
[Annotator "ChessBase"]
[PlyCount "26"]
[EventDate "2018.07.05"]
[EventType "tourn"]
[EventCountry "GER"]
[SourceTitle "playchess.com"]
[Source "ChessBase"]
[SourceQuality "1"]
[TimeControl "40/5400+30:1800+30"]

1. d4 {[%emt 0:00:00]} Nf6 {[%emt 0:00:00]} 2. Nf3 {[%emt 0:00:00]} d5 {[%emt 0:00:22]} 3. Bf4 {[%emt 0:01:14]} c5 {[%emt 0:00:27]} 4. e3 {[%emt 0:00:49]} Nc6 {[%emt 0:00:33]} 5. c3 {[%emt 0:01:47]} Qb6 {[%emt 0:00:58]} 6. Qc1 {[%emt 0:12:22]} Bf5 {[%emt 0:07:25]} 7. Nbd2 {[%emt 0:08:20]} cxd4 {[%emt 0:12:28]} 8. exd4 {[%emt 0:08:14]} Rc8 {[%emt 0:00:31]} 9. Be2 {[%emt 0:02:59]} Nb4 {[%emt 0:10:18]} 10. O-O {[%emt 0:04:13]} Bd3 {[%emt 0:16:48]} 11. Qd1 {[%emt 0:01:14]} Bc2 {[%emt 0:00:13]} 12. Qc1 {[%emt 0:00:12]} Bd3 {[%emt 0:00:20]} 13. Qd1 {[%emt 0:00:07]} Bc2 {[%emt 0:00:07]} 1/2-1/2

[Event "Schachfestival GM 2018"]
[Site "Lueneburg"]
[Date "2018.07.10"]
[Round "6"]
[White "Winterberg, Lukas"]
[Black "Ewert, Hannes"]
[Result "1/2-1/2"]
[ECO "E12"]
[WhiteElo "2372"]
[BlackElo "2318"]
[Annotator "NA"]
[PlyCount "75"]
[EventDate "2018.07.05"]
[EventType "tourn"]
[EventCountry "GER"]
[SourceTitle "playchess.com"]
[Source "ChessBase"]
[SourceQuality "1"]
[TimeControl "40/5400+30:1800+30"]

1. d4 {[%emt 0:00:00]} Nf6 {[%emt 0:00:00]} 2. c4 {[%emt 0:00:00]} e6 {[%emt 0:00:10]} 3. Nf3 {[%emt 0:00:00]} b6 {[%emt 0:00:11]} 4. a3 {[%emt 0:00:57]} Bb7 {[%emt 0:00:50]} 5. Nc3 {[%emt 0:00:12]} d5 {[%emt 0:00:21]} 6. cxd5 {[%emt 0:00:18]} Nxd5 {[%emt 0:00:06]} 7. Qc2 {[%emt 0:00:37]} Nxc3 {[%emt 0:00:32]} 8. Qxc3 {[%emt 0:02:57]} Nd7 {[%emt 0:02:29]} 9. Bg5 {[%emt 0:01:43]} Qc8 {[%emt 0:01:38]} 10. g3 {[%emt 0:03:58]} Bd6 {[%emt 0:01:50]} 11. Bg2 {[%emt 0:02:10]} O-O {[%emt 0:02:55]} 12. O-O {[%emt 0:00:13]} h6 {[%emt 0:04:47]} 13. Bf4 {[%emt 0:01:44]} Bxf4 {[%emt 0:01:57]} 14. gxf4 {[%emt 0:00:03]} c5 {[%emt 0:01:04]} 15. Rac1 {[%emt 0:04:05]} Rd8 {[%emt 0:06:42]} 16. Qe3 {[%emt 0:05:50]} Qb8 {[%emt 0:08:03]} 17. dxc5 {[%emt 0:10:00]} bxc5 {[%emt 0:00:08]} 18. Rfd1 {[%emt 0:01:53]} Bd5 {[%emt 0:02:04]} 19. Rd2 {[%emt 0:02:31]} Qb7 {[%emt 0:03:23]} 20. Rcd1 {[%emt 0:07:30]} Nf6 {[%emt 0:04:17]} 21. Ne5 {[%emt 0:01:04]} Rdc8 {[%emt 0:02:28]} 22. Qg3 {[%emt 0:11:28]} Rab8 {[%emt 0:04:53]} 23. Ng4 {[%emt 0:10:34]} Nxg4 {[%emt 0:02:52]} 24. Qxg4 {[%emt 0:01:52]} Bxg2 {[%emt 0:01:30]} 25. Qxg2 {[%emt 0:00:03]} Qxg2+ {[%emt 0:01:14]} 26. Kxg2 {[%emt 0:00:02]} Rc7 {[%emt 0:00:54]} 27. e3 {[%emt 0:02:35]} Rb3 {[%emt 0:08:07]} 28. Rd8+ {[%emt 0:01:08]} Kh7 {[%emt 0:00:18]} 29. R1d7 {[%emt 0:01:44]} Rxd7 {[%emt 0:02:52]} 30. Rxd7 {[%emt 0:00:03]} Kg6 {[%emt 0:00:06]} 31. Rc7 {[%emt 0:01:29]} Rxb2 {[%emt 0:01:19]} 32. Rxc5 {[%emt 0:00:03]} Rb6 {[%emt 0:01:16]} 33. a4 {[%emt 0:07:51]} Kf6 {[%emt 0:04:50]} 34. Kf3 {[%emt 0:07:09]} Ra6 {[%emt 0:11:45]} 35. a5 {[%emt 0:00:57]} Rd6 {[%emt 0:00:44]} 36. Rc7 {[%emt 0:05:30]} Ra6 {[%emt 0:00:13]} 37. Rc5 {[%emt 0:00:07]} Rd6 {[%emt 0:00:03]} 38. Rc7 {Ke5 Ke4+} 1/2-1/2

[Event "Schachfestival GM 2018"]
[Site "Lueneburg"]
[Date "2018.07.11"]
[Round "7"]
[White "Wachinger, Nikolas"]
[Black "Winterberg, Lukas"]
[Result "0-1"]
[ECO "B12"]
[WhiteElo "2340"]
[BlackElo "2372"]
[Annotator "NA"]
[PlyCount "54"]
[EventDate "2018.07.05"]
[EventType "tourn"]
[EventCountry "GER"]
[SourceTitle "playchess.com"]
[Source "ChessBase"]
[SourceQuality "1"]
[TimeControl "40/5400+30:1800+30"]

1. e4 {[%emt 0:00:00]} c6 {[%emt 0:00:14]} 2. d4 {[%emt 0:00:00]} d5 {[%emt 0:00:13]} 3. e5 {[%emt 0:00:13]} c5 {[%emt 0:00:45]} 4. dxc5 {[%emt 0:00:31]} e6 {[%emt 0:00:21]} 5. a3 {[%emt 0:01:37]} Bxc5 {[%emt 0:00:13]} 6. b4 {[%emt 0:00:15]} Bb6 {[%emt 0:00:09]} 7. Qg4 {[%emt 0:01:06]} Ne7 {[%emt 0:03:36]} 8. Qxg7 {[%emt 0:00:25]} Rg8 {[%emt 0:00:12]} 9. Qxh7 {[%emt 0:00:08]} Bd4 {[%emt 0:00:16]} 10. Ra2 {[%emt 0:00:08]} Bxe5 {[%emt 0:00:11]} 11. Nf3 {[%emt 0:00:32]} Bf6 {[%emt 0:00:12]} 12. Bb2 {[%emt 0:27:27]} Bxb2 {[%emt 0:14:01]} 13. Rxb2 {[%emt 0:00:11]} Qc7 {[%emt 0:14:32]} 14. c4 {[%emt 0:14:36]} a5 {[%emt 0:08:59]} 15. Rc2 {[%emt 0:17:24]} Nbc6 {[%emt 0:03:41]} 16. b5 {[%emt 0:17:26]} Ne5 {[%emt 0:00:21]} 17. cxd5 {[%emt 0:02:25]} Nxf3+ {[%emt 0:00:48]} 18. gxf3 {[%emt 0:00:01]} Qe5+ {[%emt 0:02:11]} 19. Qe4 {[%emt 0:00:20]} Qa1 {[%emt 0:01:53]} 20. Rd2 {[%emt 0:00:37]} exd5 {[%emt 0:08:14]} 21. Rxd5 {[%emt 0:01:57]} f5 {[%emt 0:05:12]} 22. Qe5 {[%emt 0:03:21]} Qxb1+ {[%emt 0:00:25]} 23. Rd1 {[%emt 0:00:02]} Qb3 {[%emt 0:01:01]} 24. b6 {[%emt 0:01:37]} Qe6 {[%emt 0:04:37]} 25. Bb5+ {[%emt 0:00:22]} Kf7 {[%emt 0:00:30]} 26. f4 {[%emt 0:00:16]} Nc6 {[%emt 0:01:00]} 27. Bxc6 {[%emt 0:00:32]} Qxc6 {[%emt 0:02:03]} 0-1